bitfinex/quotes_ETHUSD_20241123
["timestamp","ask_amount","ask_price","bid_price","bid_amount"]
[1732384654881,0.27245004,3421.8,3421.1,0.8212]
[1732384655102,0.27245004,3421.7,3421.1,0.8212]
[1732384655411,0.27245004,3421.6,3421.1,0.8212]
[1732384655620,0.35978031,3421.5,3421.1,0.8212]
[1732384655903,0.27245004,3421.4,3421.1,0.8212]
[1732384656298,0.08693944,3421.3,3421.1,0.8212]
[1732384656900,0.43592007,3421.9,3421.1,0.8212]
[1732384657107,0.086744,3421.2,3421.1,0.8212]
[1732384657313,0.55,3422.0,3421.1,0.8212]
[1732384657489,0.086744,3421.2,3420.3,1.1125]
[1732384657687,0.27246788,3421.1,3420.3,1.1125]
[1732384657910,0.08654856,3421.1,3420.3,1.1125]
[1732384658113,0.27249883,3421.0,3420.3,1.1125]
[1732384658315,0.27249883,3420.9,3420.3,1.1125]
[1732384658519,0.27249883,3420.8,3420.3,1.1125]
[1732384658820,0.08576666,3420.7,3419.5,0.02923363]
[1732384659023,0.43599813,3421.4,3419.9,0.2913]
[1732384659178,0.35939879,3421.3,3420.3,0.2913]
[1732384659382,0.27245935,3421.2,3420.4,0.85043295]
[1732384659713,0.35900791,3421.1,3420.4,0.85043295]
[1732384659889,0.27245935,3421.0,3420.4,0.85043295]
[1732384660076,0.27245935,3420.9,3420.4,0.85043295]
[1732384660279,0.08615763,3420.9,3420.4,0.8212]
[1732384660714,0.43599813,3421.5,3420.4,0.8212]
[1732384660922,0.08596215,3420.8,3420.4,0.8212]
[1732384661121,0.43599813,3421.6,3420.4,0.8212]
[1732384661418,0.70843086,3421.5,3420.4,0.8212]
[1732384661618,0.08713486,3421.4,3420.4,0.8212]
[1732384661784,0.27243794,3421.3,3420.4,0.8212]
[1732384661985,0.35918194,3421.2,3420.4,0.8212]
[1732384662306,0.27243794,3421.1,3420.4,0.8212]
[1732384662701,1.22796324,3421.8,3420.4,0.8212]
[1732384662702,0.35879104,3421.0,3420.4,0.8212]
[1732384663015,0.0863531,3421.0,3420.4,0.8212]
[1732384663217,0.55,3421.6,3420.4,0.8212]
[1732384663415,0.79565347,3421.5,3420.4,0.8212]
[1732384663585,0.7083232,3421.4,3420.4,0.8212]
[1732384663789,0.35936193,3421.3,3420.4,0.8212]
[1732384663989,0.27242249,3421.2,3420.4,0.8212]
[1732384664187,0.35897105,3421.1,3420.4,0.8212]
[1732384664515,0.27242249,3421.0,3420.4,0.8212]
[1732384664716,0.27242249,3420.9,3420.4,0.8212]
[1732384665017,0.08615763,3420.9,3420.4,0.8212]
[1732384665316,0.98591838,3421.4,3420.4,0.8212]
[1732384665613,0.2724471,3421.3,3420.4,0.8212]
[1732384665788,0.086744,3421.2,3420.4,0.8212]
[1732384665999,0.2724471,3421.1,3420.4,0.8212]
[1732384666193,0.98591838,3421.4,3420.4,0.8212]
[1732384666194,0.3588002,3421.0,3420.4,0.8212]
[1732384666398,0.2724471,3420.9,3420.4,0.8212]
[1732384666596,0.08596215,3420.8,3420.4,0.8212]
[1732384667009,0.43591838,3421.3,3420.4,0.8212]
[1732384667319,0.35921879,3421.2,3420.4,0.8212]
[1732384667482,0.27247479,3421.1,3420.4,0.8212]
[1732384667686,0.27247479,3421.0,3420.4,0.8212]
[1732384667992,0.27247479,3420.9,3420.4,0.8212]
[1732384668195,0.08596215,3420.8,3420.4,0.8212]
[1732384668395,0.55,3421.4,3420.4,0.8212]
[1732384668594,0.35940711,3421.3,3420.4,0.8212]
[1732384668801,0.27246767,3421.2,3420.4,0.8212]
[1732384669019,0.35878115,3421.1,3420.4,0.8212]
[1732384669331,0.27246639,3421.0,3420.4,0.8212]
[1732384669657,0.35839022,3420.9,3420.4,0.8212]
[1732384669823,0.08592383,3420.9,3420.4,0.8212]
[1732384670028,0.27247702,3420.8,3420.4,0.8212]
[1732384670213,0.08553286,3420.7,3420.4,0.8212]
[1732384670529,0.43594622,3421.3,3420.4,0.8212]
[1732384670709,0.08533736,3420.6,3420.4,0.8212]
[1732384670918,0.43594622,3421.3,3420.4,0.8212]
[1732384671214,0.2724778,3421.2,3420.4,0.8212]
[1732384671390,0.35879256,3421.1,3420.4,0.8212]
[1732384671586,0.2724778,3421.0,3420.4,0.8212]
[1732384671805,0.35840163,3420.9,3420.4,0.8212]
[1732384672152,0.2724778,3420.8,3420.4,0.8212]
[1732384672289,0.08592383,3420.9,3420.4,0.8212]
[1732384672484,0.08553286,3420.7,3420.4,0.8212]
[1732384672689,0.08572835,3420.8,3420.4,0.8212]
[1732384673002,0.8045,3421.3,3420.4,0.8212]
[1732384673202,0.35894827,3421.2,3420.4,0.8212]
[1732384673414,0.27243807,3421.1,3420.4,0.8212]
[1732384673614,0.35855737,3421.0,3420.4,0.8212]
[1732384673799,0.27243807,3420.9,3420.4,0.8212]
[1732384674003,0.08572835,3420.8,3420.4,0.8212]
[1732384674204,0.43591691,3421.4,3420.4,0.8212]
[1732384674403,0.79507019,3421.3,3420.4,0.8212]
[1732384674636,0.27244764,3421.2,3420.4,0.8212]
[1732384674940,0.3587624,3421.1,3420.4,0.8212]
[1732384675145,0.27244764,3421.0,3420.4,1.1125]
[1732384675348,0.08631476,3421.1,3420.8,0.7576]
[1732384675547,0.43591691,3422.6,3421.4,0.7576]
[1732384675733,0.27235292,3422.5,3421.5,0.2913]
[1732384675908,0.27235292,3422.4,3421.5,0.2913]
[1732384676103,0.8045,3422.9,3421.5,0.2913]
[1732384676334,0.43579106,3422.5,3421.5,0.2913]
[1732384676523,0.8045,3422.9,3421.5,0.2913]
[1732384676704,0.27229345,3422.4,3421.5,0.2913]
[1732384677116,0.43566952,3422.7,3421.5,0.2913]
[1732384677324,0.27229345,3422.6,3421.5,0.2913]
[1732384677530,0.27229345,3422.5,3421.5,0.2913]
[1732384677733,0.27229345,3422.4,3421.5,0.2913]
[1732384678002,0.27229345,3422.3,3421.4,0.7576]
[1732384678234,1.07679345,3422.3,3421.4,0.7576]
[1732384678431,0.27229345,3422.2,3421.4,0.7576]
[1732384678644,0.27229345,3422.1,3421.4,0.7576]
[1732384678872,0.27229345,3422.0,3421.4,0.7576]
[1732384679147,0.27229345,3421.9,3421.4,0.7576]
[1732384679354,0.27229345,3421.8,3421.4,0.7576]
[1732384679552,0.08797813,3421.8,3421.4,0.7576]
[1732384679850,0.8045,3422.3,3421.4,0.7576]
[1732384680019,0.08778276,3421.7,3421.4,0.7576]
[1732384680217,0.55,3422.5,3421.4,0.7576]
[1732384680413,0.55,3422.3,3421.4,0.7576]
[1732384680613,0.36098227,3422.2,3421.4,0.7576]
[1732384680826,0.27222274,3422.1,3421.4,0.7576]
[1732384681021,0.36059159,3422.0,3421.4,0.7576]
[1732384681229,0.27222274,3421.9,3421.4,0.7576]
[1732384681515,0.08797813,3421.8,3421.4,0.7576]
[1732384682036,0.43566952,3422.5,3421.4,0.7576]
[1732384682037,0.55,3422.4,3421.4,0.7576]
[1732384682252,0.55,3422.2,3421.4,0.7576]
[1732384682458,0.27223177,3422.1,3421.4,0.7576]
[1732384682616,0.36079597,3422.1,3421.4,0.7576]
[1732384682815,1.3545,3421.9,3421.1,0.7576]
[1732384683127,0.55,3421.7,3419.4,0.2913]
[1732384683313,0.55,3421.5,3419.9,0.2913]
[1732384683516,0.27223177,3421.4,3420.3,0.2913]
[1732384683752,0.27223177,3421.3,3420.4,1.0489]
[1732384683962,0.27223177,3421.2,3420.4,1.0489]
[1732384684125,0.0868057,3421.2,3420.5,0.02923298]
[1732384684336,0.0868057,3421.2,3420.6,0.7576]
[1732384684714,0.43566952,3421.8,3420.6,0.7576]
[1732384684915,0.27234104,3421.7,3420.6,0.7576]
[1732384685122,0.27234104,3421.6,3420.6,0.7576]
[1732384685353,0.27234104,3421.5,3420.6,0.7576]
[1732384685522,0.27234104,3421.4,3420.7,0.7776]
[1732384685723,0.08739197,3421.5,3420.7,0.7776]
[1732384685946,0.08700114,3421.3,3420.7,0.7776]
[1732384686152,0.08719656,3421.4,3420.7,0.7776]
[1732384686469,0.43570364,3422.1,3420.7,0.7776]
[1732384686630,0.27233272,3422.0,3420.9,0.7776]
[1732384686838,0.36050622,3421.9,3421.1,0.7776]
[1732384687166,0.27233272,3421.8,3421.1,0.7776]
[1732384687333,0.0881735,3421.9,3421.3,0.7776]
[1732384687531,0.08778276,3421.7,3421.5,0.7776]
[1732384687750,0.43570364,3422.5,3421.5,0.7776]
[1732384687956,0.27228534,3422.4,3421.5,0.7776]
[1732384688258,0.27228534,3422.3,3421.5,0.7776]
[1732384688462,0.27228534,3422.2,3421.5,0.7776]
[1732384688665,0.27228534,3422.1,3421.5,0.7776]
[1732384688870,0.27228534,3422.0,3421.5,0.7776]
[1732384689168,0.08830395,3422.0,3421.5,0.7776]
[1732384689663,0.0881086,3421.9,3421.5,0.7776]
[1732384690076,0.55,3422.7,3421.5,0.7776]
[1732384690239,0.27218209,3422.6,3421.6,0.82522289]
[1732384690436,0.36146264,3422.5,3421.7,1.0873]
[1732384690835,0.27218209,3422.4,3421.7,1.0873]
[1732384691036,0.27218209,3422.3,3421.7,1.0873]
[1732384691372,0.8327,3423.1,3421.7,1.0873]
[1732384691373,0.08869463,3422.2,3421.7,1.0873]
[1732384691540,0.08869463,3422.2,3421.8,0.02922069]
[1732384691749,0.55,3423.0,3421.9,0.796]
[1732384692077,0.3621131,3422.9,3421.9,0.796]
[1732384692272,0.27205147,3422.8,3421.9,0.796]
[1732384692431,0.27205147,3422.7,3421.9,0.796]
[1732384692631,0.34661467,3422.6,3421.9,0.796]
[1732384692975,0.27205147,3422.5,3421.9,0.796]
[1732384693179,0.27205147,3422.4,3421.9,0.796]
[1732384693336,0.07423771,3422.4,3421.9,0.796]
[1732384693834,0.07407496,3422.3,3421.9,0.796]
[1732384694047,0.55,3423.0,3421.9,0.796]
[1732384694264,0.34700685,3422.9,3421.9,0.796]
[1732384694472,0.2719555,3422.8,3421.9,0.796]
[1732384694775,0.2719555,3422.7,3421.9,0.796]
[1732384694978,0.2719555,3422.6,3421.9,0.796]
[1732384695175,0.2719555,3422.5,3421.9,0.796]
[1732384695483,0.34619321,3422.4,3421.9,0.796]
[1732384695661,0.2719555,3422.3,3421.9,0.796]
[1732384695869,0.07423771,3422.4,3421.9,0.796]
[1732384696036,0.55,3423.0,3421.9,0.796]
[1732384696037,0.07391219,3422.2,3421.9,0.796]
[1732384696242,0.55,3423.0,3421.9,0.796]
[1732384696471,0.55,3422.8,3421.9,0.796]
[1732384696768,0.27188444,3422.7,3421.9,0.796]
[1732384696967,0.07472593,3422.7,3421.9,0.796]
[1732384697207,0.27188444,3422.6,3421.9,0.796]
[1732384697380,0.07472593,3422.7,3421.9,0.796]
[1732384697587,0.07440046,3422.5,3421.9,0.796]
[1732384697737,0.27189582,3422.6,3421.6,0.796]
[1732384697738,1.65459582,3422.4,3421.6,0.796]
[1732384697937,0.27189582,3422.3,3421.6,0.796]
[1732384698175,0.82189582,3422.2,3421.6,0.796]
[1732384698391,0.27189582,3422.1,3421.6,0.796]
[1732384698757,0.07358663,3422.0,3421.6,0.796]
[1732384699165,0.27197358,3421.9,3421.6,0.796]
[1732384699368,0.55,3422.3,3421.6,0.796]
[1732384699571,0.07326103,3421.8,3421.6,0.796]
[1732384699833,0.07309821,3421.7,3421.6,0.796]
[1732384700052,0.55,3422.6,3421.6,0.796]
[1732384700369,0.55,3422.4,3421.6,0.796]
[1732384700549,0.27200877,3422.3,3421.6,0.796]
[1732384700756,0.27202699,3422.2,3421.6,0.796]
[1732384701069,0.3457764,3422.1,3421.6,0.796]
[1732384701281,0.27202699,3422.0,3421.6,0.796]
[1732384701737,0.07342383,3421.9,3421.6,0.796]
[1732384702365,0.55,3422.5,3421.6,0.796]
[1732384702672,0.2721493,3422.4,3421.6,0.796]
[1732384702874,0.2721493,3422.3,3421.6,0.796]
[1732384703181,0.2721493,3422.2,3421.6,0.796]
[1732384703354,0.2721493,3422.1,3421.6,0.796]
[1732384703587,0.2721493,3422.0,3421.6,0.796]
[1732384703992,0.07341033,3421.9,3421.6,0.796]
[1732384704373,0.2721493,3421.8,3421.6,0.796]
[1732384704574,0.07341033,3421.9,3421.6,0.796]
[1732384704800,0.07308471,3421.7,3421.6,0.796]
[1732384704981,0.43524319,3422.4,3421.6,0.796]
[1732384705188,0.70764553,3422.3,3421.6,0.796]
[1732384705402,0.27240234,3422.2,3421.6,0.796]
[1732384705606,0.27240234,3422.1,3421.6,0.796]
[1732384705768,0.27240234,3422.0,3421.6,0.796]
[1732384705977,0.27240234,3421.9,3421.6,0.796]
[1732384706400,0.8302,3423.0,3421.6,0.796]
[1732384706401,0.07324753,3421.8,3421.6,0.796]
[1732384706807,0.43524319,3422.7,3421.6,0.796]
[1732384707006,0.70763916,3422.6,3421.6,0.796]
[1732384707242,0.27239597,3422.5,3421.6,0.796]
[1732384707407,0.27239597,3422.4,3421.8,0.825]
[1732384707576,0.07438696,3422.5,3421.0,0.77114205]
[1732384707577,0.27239597,3422.3,3422.0,0.825]
[1732384707773,0.07406146,3422.3,3422.1,0.02922033]
[1732384708021,0.07406146,3422.3,3422.2,0.825]
[1732384708309,0.43572846,3423.3,3422.2,0.825]
[1732384708509,0.43572846,3423.3,3421.1,0.12921653]
[1732384708510,0.27231231,3423.2,3422.4,0.825]
[1732384708720,0.27231231,3423.1,3422.6,0.2913]
[1732384708870,0.07552593,3423.2,3422.7,0.825]
[1732384709209,0.43572846,3423.7,3422.8,0.2913]
[1732384709424,0.27204126,3423.6,3422.8,0.2913]
[1732384709722,0.27204126,3423.5,3422.8,0.2913]
[1732384710109,0.07585126,3423.4,3422.8,0.2913]
[1732384710329,0.34789252,3423.4,3422.7,0.825]
[1732384710609,0.27204126,3423.3,3421.3,0.75]
[1732384710828,0.07585126,3423.4,3420.5,0.1]
[1732384710829,0.7777,3423.1,3421.4,0.77921718]
[1732384711024,0.82200635,3423.0,3421.4,0.75]
[1732384711197,0.55,3422.8,3421.4,0.75]
[1732384711396,0.27202777,3422.7,3421.0,0.2913]
[1732384711711,0.27202777,3422.6,3421.6,1.0413]
[1732384711922,0.27202777,3422.5,3421.6,1.0413]
[1732384712227,0.27202777,3422.4,3421.6,1.0413]
[1732384712418,0.07438696,3422.5,3421.6,1.0413]
[1732384712625,0.07406146,3422.3,3421.6,1.0413]
[1732384712832,0.07422421,3422.4,3421.6,1.0413]
[1732384713124,0.07389869,3422.2,3421.6,1.0413]
[1732384713324,0.7777,3422.4,3421.6,1.0413]
[1732384713526,0.07373591,3422.1,3421.6,1.0413]
[1732384713761,0.7777,3422.4,3421.6,1.0413]
[1732384714020,0.07357313,3422.0,3421.6,1.0413]
[1732384714324,0.7777,3422.4,3421.6,1.0413]
[1732384714558,0.07341033,3421.9,3421.6,1.0413]
[1732384714698,0.7777,3422.4,3421.6,1.0413]
[1732384715000,0.07324753,3421.8,3421.6,1.0413]
[1732384715197,0.7777,3422.7,3421.7,0.02922414]
[1732384715396,0.27226755,3422.6,3421.6,1.0413]
[1732384715725,1.12435451,3422.5,3421.7,0.75]
[1732384715889,0.27226755,3422.4,3421.7,0.75]
[1732384716087,0.27226755,3422.3,3421.7,0.75]
[1732384716313,0.27226755,3422.2,3421.7,0.75]
[1732384716631,0.34616624,3422.2,3421.7,0.75]
[1732384716798,0.07389869,3422.2,3421.7,0.75]
[1732384717201,0.27232701,3422.1,3421.7,0.75]
[1732384717525,0.07373591,3422.1,3421.7,0.75]
[1732384717739,0.27236279,3422.0,3421.4,0.75]
[1732384717898,0.27237601,3421.9,3421.4,0.75]
[1732384718225,0.27238311,3421.8,3421.4,0.75]
[1732384718392,0.07341033,3421.9,3421.4,0.75]
[1732384718591,0.07308471,3421.7,3420.9,0.75]
[1732384718800,0.27237808,3421.8,3420.6,0.75]
[1732384718801,1.05012836,3421.6,3420.6,0.75]
[1732384719028,0.27242836,3421.5,3420.6,0.75]
[1732384719192,0.27242836,3421.4,3420.6,0.75]
[1732384719532,0.27242836,3421.3,3420.6,0.75]
[1732384719828,0.07268005,3421.4,3420.6,0.75]
[1732384719829,0.27242836,3421.2,3420.6,0.75]
[1732384720005,0.27242836,3421.1,3420.6,0.75]
[1732384720206,0.764,3420.9,3419.5,0.7814]
[1732384720534,0.34385954,3420.8,3419.5,0.7814]
[1732384720703,0.27215675,3420.7,3419.7,0.7814]
[1732384720909,0.07153988,3420.7,3419.9,0.7814]
[1732384721090,0.07153988,3420.7,3420.1,0.7814]
[1732384721438,0.55,3421.4,3420.2,0.02923527]
[1732384721732,0.34452186,3421.3,3420.1,0.7814]
[1732384721939,0.27200466,3421.2,3420.1,0.7814]
[1732384722122,0.27200466,3421.1,3420.2,0.02923492]
[1732384722431,0.07235433,3421.2,3420.2,0.02923492]
[1732384722615,0.07202858,3421.0,3420.2,0.02923492]
[1732384722821,0.07219146,3421.1,3420.1,0.7814]
[1732384723019,0.07186569,3420.9,3420.1,0.7814]
[1732384723208,0.07202858,3421.0,3420.1,0.7814]
[1732384723406,0.55,3421.4,3420.1,0.7814]
[1732384723407,0.07170279,3420.8,3420.1,0.7814]
[1732384723599,0.07186569,3420.9,3420.1,0.7814]
[1732384723800,0.07153988,3420.7,3420.1,0.7814]
[1732384723997,0.07170279,3420.8,3420.2,0.02923376]
[1732384724202,0.764,3421.5,3420.3,0.7814]
[1732384724438,0.07153988,3420.7,3420.3,0.7814]
[1732384724602,0.764,3421.5,3420.3,0.7814]
[1732384724797,0.27175339,3421.4,3420.3,0.7814]
[1732384725017,0.27175339,3421.3,3420.3,0.7814]
[1732384725530,0.07235433,3421.2,3420.3,0.7814]
[1732384726119,0.764,3421.5,3420.3,0.7814]
[1732384726432,0.07219146,3421.1,3420.3,0.7814]
[1732384726753,0.07202858,3421.0,3420.3,0.7814]
[1732384726949,0.764,3421.5,3420.3,0.7814]
[1732384727108,0.07186569,3420.9,3420.3,0.7814]
[1732384727308,0.764,3421.5,3420.3,0.7814]
[1732384727542,0.07170279,3420.8,3420.3,0.7814]
[1732384727844,0.764,3421.5,3420.3,0.7814]
[1732384728047,0.08584786,3420.7,3420.3,0.7814]
[1732384728207,0.764,3421.3,3419.5,1.0727]
[1732384728411,0.27160206,3421.2,3419.7,0.7814]
[1732384728615,0.0868252,3421.2,3419.8,0.32053376]
[1732384729044,0.27160147,3421.1,3419.8,0.32053376]
[1732384729362,0.0864343,3421.0,3419.8,0.2913]
[1732384729716,0.764,3421.3,3419.9,0.02923578]
[1732384729916,0.764,3421.3,3419.8,0.2913]
[1732384730143,0.35837468,3421.2,3419.8,0.2913]
[1732384730361,0.0868252,3421.2,3419.8,0.2913]
[1732384730511,0.27152816,3421.1,3419.9,1.09823578]
[1732384730717,0.764,3421.3,3420.1,0.2913]
[1732384730916,0.0864343,3421.0,3420.2,0.02923466]
[1732384731150,0.764,3421.3,3420.2,0.02923466]
[1732384731350,0.08623883,3420.9,3420.2,0.02923466]
[1732384731648,0.764,3421.3,3420.2,0.02923466]
[1732384731854,0.08604335,3420.8,3420.1,0.2913]
[1732384732041,0.764,3421.3,3420.2,0.02923468]
[1732384732235,0.08584786,3420.7,3420.2,0.02923468]
[1732384732451,0.764,3421.3,3420.1,0.2913]
[1732384732649,0.08565236,3420.6,3420.1,0.2913]
[1732384732955,0.08545685,3420.5,3420.1,0.2913]
[1732384733141,0.764,3421.3,3420.1,0.2913]
[1732384733454,0.27140765,3421.2,3420.1,0.32053521]
[1732384733639,0.0868252,3421.2,3420.1,0.2913]
[1732384737218,0.0868252,3421.2,3420.2,0.02923541]
[1732384737434,0.0868252,3421.2,3420.4,0.2913]
[1732384737872,0.764,3421.3,3420.4,0.2913]
[1732384738077,0.27133808,3421.2,3420.4,0.2913]
[1732384738272,0.27133808,3421.1,3420.4,0.2913]
[1732384738480,0.0860283,3421.0,3420.4,0.2913]
[1732384739077,0.764,3421.3,3420.4,0.2913]
[1732384739236,0.34344218,3421.2,3420.4,0.2913]
[1732384739440,0.27161145,3421.1,3420.4,0.2913]
[1732384739682,0.072016,3421.2,3420.4,0.2913]
[1732384739854,0.07169025,3421.0,3420.4,0.2913]
[1732384740178,0.07152736,3420.9,3420.4,0.2913]
[1732384740361,0.764,3421.3,3420.4,0.2913]
[1732384740566,0.07136446,3420.8,3420.4,0.2913]
[1732384740767,0.764,3421.3,3420.4,0.2913]
[1732384740963,0.07120155,3420.7,3420.4,0.2913]
[1732384741175,0.764,3421.3,3420.4,0.2913]
[1732384741473,0.27188491,3421.2,3420.4,0.2913]
[1732384741681,0.764,3421.3,3420.4,0.2913]
[1732384741682,0.27188491,3421.1,3420.4,0.2913]
[1732384742190,0.07169025,3421.0,3420.4,0.2913]
[1732384742371,0.764,3421.3,3420.4,0.2913]
[1732384742544,0.07152736,3420.9,3420.4,0.2913]
[1732384742747,0.764,3421.3,3420.4,0.2913]
[1732384742954,0.07136446,3420.8,3420.6,0.2913]
[1732384743154,0.8228,3421.8,3420.8,0.7777]
[1732384743381,0.27204949,3421.7,3420.8,0.7777]
[1732384743678,0.27204949,3421.6,3420.8,0.7777]
[1732384743998,0.27204949,3421.5,3420.8,0.7777]
[1732384744279,0.27204949,3421.4,3420.8,0.7777]
[1732384744480,0.27204949,3421.3,3420.8,0.7777]
[1732384744793,0.27204949,3421.2,3420.8,0.7777]
[1732384745087,0.8228,3421.8,3420.8,0.7777]
[1732384745384,0.27218778,3421.7,3420.8,0.7777]
[1732384745550,0.27218778,3421.6,3420.8,0.7777]
[1732384745746,0.27218778,3421.5,3420.8,0.7777]
[1732384746099,0.43490883,3422.0,3420.8,0.7777]
[1732384746243,0.70794121,3421.9,3420.8,0.7777]
[1732384746447,0.70794121,3421.8,3420.8,0.7777]
[1732384746749,0.27228508,3421.7,3420.8,0.7777]
[1732384746944,1.364,3422.3,3420.8,0.7777]
[1732384746945,0.27228508,3421.6,3420.8,0.7777]
[1732384747178,0.27228508,3421.5,3420.8,0.7777]
[1732384747404,0.27228508,3421.4,3420.8,0.7777]
[1732384747677,0.27228508,3421.3,3420.8,0.7777]
[1732384747893,0.27228508,3421.2,3420.8,0.7777]
[1732384748185,0.55,3422.1,3420.8,0.7777]
[1732384748485,0.70842002,3422.0,3420.8,0.7777]
[1732384748694,0.70842002,3421.9,3420.8,0.7777]
[1732384748883,0.70842002,3421.8,3420.8,0.7777]
[1732384749191,0.70842002,3421.7,3420.8,0.7777]
[1732384749373,0.70842002,3421.6,3420.8,0.7777]
[1732384749589,0.27276389,3421.5,3420.8,0.7777]
[1732384749782,0.27273546,3421.4,3420.8,0.7777]
[1732384749960,0.27273546,3421.3,3420.8,0.7777]
[1732384750150,0.27273546,3421.2,3420.8,0.7777]
[1732384750490,0.07215408,3421.2,3420.8,0.7777]
[1732384750866,0.43633754,3421.9,3420.8,0.7777]
[1732384751190,0.78217686,3421.8,3420.8,0.7777]
[1732384751495,0.70904575,3421.7,3420.8,1.069]
[1732384751693,0.27270821,3421.6,3420.8,1.069]
[1732384751903,0.27270821,3421.5,3420.8,1.069]
[1732384752094,0.27270821,3421.4,3420.8,1.069]
[1732384752439,0.27270821,3421.3,3420.9,0.8021]
[1732384752696,0.27270821,3421.3,3419.7,0.46452232]
[1732384752697,0.0724798,3421.4,3421.1,0.8021]
[1732384752855,0.07215408,3421.2,3421.1,0.8021]
[1732384753055,0.43633754,3422.0,3421.1,0.8021]
[1732384753255,0.27263504,3421.9,3421.1,0.8021]
[1732384753494,0.27263504,3421.8,3421.1,0.8021]
[1732384753705,0.27263504,3421.7,3421.2,0.2913]
[1732384753874,0.0729683,3421.7,3421.3,0.8021]
[1732384754297,0.43633754,3422.5,3421.4,0.02922406]
[1732384754502,0.70878932,3422.4,3421.6,0.8021]
[1732384754713,0.27245178,3422.3,3421.8,0.8021]
[1732384755001,0.34633964,3422.2,3421.8,0.8021]
[1732384755307,0.07388786,3422.2,3421.8,0.8021]
[1732384755803,0.07372508,3422.1,3421.8,0.8021]
[1732384756210,0.43633754,3422.8,3421.8,1.0934]
[1732384756375,0.27212704,3422.7,3421.9,1.0934]
[1732384756577,0.07470159,3422.7,3421.9,1.0934]
[1732384757023,0.812,3423.2,3421.9,1.0934]
[1732384757221,0.07453886,3422.6,3421.9,1.0934]
[1732384757514,0.30389302,3424.2,3422.0,0.8021]
[1732384757676,0.812,3423.5,3422.0,0.83131742]
[1732384758019,0.07584043,3423.4,3422.0,0.8021]
[1732384758402,0.812,3423.5,3422.2,1.0934]
[1732384758716,0.07584043,3423.4,3422.2,1.0934]
[1732384758926,0.812,3423.5,3422.2,1.0934]
[1732384759073,0.07584043,3423.4,3422.2,1.0934]
[1732384759273,0.812,3423.5,3422.2,1.0934]
[1732384759498,0.07584043,3423.4,3422.2,1.0934]
[1732384759716,0.812,3423.5,3422.2,1.0934]
[1732384759874,0.07584043,3423.4,3422.2,1.0934]
[1732384760207,0.812,3423.5,3422.2,1.0934]
[1732384760599,0.07584043,3423.4,3422.2,1.0934]
[1732384762486,0.07584043,3423.4,3422.3,0.8021]
[1732384762702,0.07584043,3423.4,3422.3,1.0934]
[1732384763279,0.07584043,3423.4,3422.4,0.8021]
[1732384769116,0.7775,3423.2,3422.1,0.8198]
[1732384769320,0.07565808,3423.1,3422.1,0.8198]
[1732384772297,0.7731,3423.4,3422.1,0.8198]
[1732384772503,0.07598343,3423.3,3422.1,0.8198]
[1732384774821,0.7731,3423.0,3421.4,0.2913]
[1732384774989,0.55,3422.7,3421.3,0.7661]
[1732384775189,0.7731,3422.6,3421.3,0.7661]
[1732384775412,0.8791168,3422.6,3421.3,0.7661]
[1732384776621,0.1060168,3422.6,3421.3,0.7661]
[1732384776816,0.7731,3422.5,3421.3,0.7661]
[1732384777023,0.55,3422.4,3421.3,0.7661]
[1732384777212,0.7731,3422.3,3421.3,0.7661]
[1732384777527,0.7731,3422.3,3420.7,0.2913]
[1732384777528,0.7731,3422.3,3421.0,0.7661]
[1732384777737,0.08403223,3422.2,3421.0,0.7661]
[1732384778394,0.08180786,3422.2,3421.0,0.7661]
[1732384778626,0.10451808,3422.2,3421.0,0.7661]
[1732384785700,0.10451808,3422.2,3421.1,0.2913]
[1732384785906,0.10451808,3422.2,3421.2,0.7661]
[1732384786309,0.7731,3422.3,3421.2,0.7661]
[1732384786791,0.10427524,3422.2,3421.2,0.7661]
[1732384789794,0.7731,3422.3,3421.2,0.7661]
[1732384790200,0.10427524,3422.2,3421.2,0.7661]
[1732384790600,0.7731,3422.3,3421.2,0.7661]
[1732384790825,0.10403108,3422.1,3421.2,0.7661]
[1732384791145,0.1037869,3422.0,3421.2,0.7661]
[1732384791312,0.7731,3422.3,3421.2,0.7661]
[1732384791511,0.10427524,3422.2,3421.2,0.7661]
[1732384791731,0.8086,3422.1,3420.5,0.2913]
[1732384791910,0.1037869,3422.0,3420.5,0.2913]
[1732384792904,0.1037869,3422.0,3420.6,0.2913]
[1732384793247,0.8086,3422.1,3420.8,0.2913]
[1732384793548,0.8086,3422.1,3420.8,0.32052832]
[1732384794310,0.8086,3422.1,3420.8,0.2913]
[1732384795043,0.8086,3422.1,3420.8,0.32052832]
[1732384795709,0.8086,3422.1,3421.0,1.0457]
[1732384795925,0.8086,3422.1,3421.1,0.02922606]
[1732384796808,0.8086,3422.1,3421.0,1.0457]
[1732384798217,0.8086,3422.1,3421.1,0.02922615]
[1732384798618,0.8086,3422.1,3421.0,1.0457]
[1732384799242,0.8086,3422.1,3421.1,0.02922617]
[1732384800150,0.8086,3422.1,3421.0,1.0457]
[1732384800811,0.8086,3422.1,3420.7,0.8083]
[1732384801010,0.7697,3421.9,3420.5,1.0996]
[1732384801228,0.7697,3421.9,3420.6,0.02923251]
[1732384801429,0.7697,3421.9,3420.8,0.2913]
[1732384801857,0.7697,3421.9,3420.1,0.2913]
[1732384802539,0.7697,3421.9,3420.1,0.32053252]
[1732384802731,0.7697,3421.9,3420.3,0.2913]
[1732384803684,0.55,3421.8,3420.3,0.2913]
[1732384803859,0.7697,3421.7,3419.7,0.2913]
[1732384804385,0.7697,3421.7,3419.7,0.32053518]
[1732384804670,0.7697,3421.7,3419.9,0.2913]
[1732384804870,0.7697,3421.7,3420.0,0.02923512]
[1732384805044,0.7697,3421.7,3419.9,0.2913]
[1732384805231,0.7697,3421.7,3420.0,0.0292351]
[1732384805436,0.7697,3421.7,3419.9,0.2913]
[1732384805940,0.7697,3421.7,3420.0,0.0292351]
[1732384806140,0.7697,3421.7,3419.9,0.2913]